[Event "Titled Tuesday Blitz December 06 Late 2022"]
[White "Bongo Akanga Ndjila, Barthelemy"]
[Black "Pham, Le Thao Nguyen"]
[WhiteFideId "10609431"]
[BlackFideId "12401226"]
[WhiteElo "1768"]
[BlackElo "2282"]
[Result "1-0"]
[Round "07"]
[TimeControl "180+1"]
[Date "2022.12.07"]
[WhiteClock "0:00:22"]
[BlackClock "0:00:29"]

1. d4 {[%clk 0:02:47]}  Nf6 {[%clk 0:02:58]} 2. c4 {[%clk 0:02:46]}  g6 {[%clk 0:02:46]} 3. Nc3 {[%clk 0:02:45]}  Bg7 {[%clk 0:02:46]} 4. e4 {[%clk 0:02:44]}  O-O {[%clk 0:02:45]} 5. Be2 {[%clk 0:02:44]}  d6 {[%clk 0:02:41]} 6. Nf3 {[%clk 0:02:44]}  Re8 {[%clk 0:02:41]} 7. O-O {[%clk 0:02:44]}  Nc6 {[%clk 0:02:40]} 8. d5 {[%clk 0:02:43]}  Ne5 {[%clk 0:02:37]} 9. Nxe5 {[%clk 0:02:43]}  dxe5 {[%clk 0:02:38]} 10. c5 {[%clk 0:02:39]}  e6 {[%clk 0:02:37]} 11. Bc4 {[%clk 0:02:36]}  exd5 {[%clk 0:02:35]} 12. exd5 {[%clk 0:02:35]}  b6 {[%clk 0:02:35]} 13. b4 {[%clk 0:02:34]}  a5 {[%clk 0:02:34]} 14. cxb6 {[%clk 0:02:29]}  cxb6 {[%clk 0:02:33]} 15. b5 {[%clk 0:02:18]}  Bb7 {[%clk 0:02:33]} 16. Qb3 {[%clk 0:02:03]}  Nd7 {[%clk 0:02:25]} 17. Ba3 {[%clk 0:02:00]}  e4 {[%clk 0:02:17]} 18. Rad1 {[%clk 0:01:57]}  Ne5 {[%clk 0:02:15]} 19. d6 {[%clk 0:01:54]}  Qd7 {[%clk 0:02:04]} 20. Bd5 {[%clk 0:01:44]}  Bxd5 {[%clk 0:01:53]} 21. Nxd5 {[%clk 0:01:44]}  Qb7 {[%clk 0:01:47]} 22. Nc7 {[%clk 0:01:41]}  h5 {[%clk 0:01:31]} 23. Rd5 {[%clk 0:01:29]}  Nd7 {[%clk 0:01:26]} 24. Rfd1 {[%clk 0:01:24]}  Bh6 {[%clk 0:01:20]} 25. Nxa8 {[%clk 0:01:15]}  Qxa8 {[%clk 0:01:20]} 26. Bc1 {[%clk 0:01:07]}  Bg7 {[%clk 0:01:17]} 27. Be3 {[%clk 0:01:03]}  Kh7 {[%clk 0:01:12]} 28. R5d2 {[%clk 0:00:56]}  Kg8 {[%clk 0:01:10]} 29. Rc1 {[%clk 0:00:52]}  Qd8 {[%clk 0:01:08]} 30. Rc7 {[%clk 0:00:51]}  Be5 {[%clk 0:01:07]} 31. Qd5 {[%clk 0:00:46]}  Re6 {[%clk 0:01:02]} 32. Rc6 {[%clk 0:00:39]}  Qh4 {[%clk 0:00:56]} 33. g3 {[%clk 0:00:39]}  Qh3 {[%clk 0:00:48]} 34. Rc8+ {[%clk 0:00:33]}  Kh7 {[%clk 0:00:45]} 35. Bd4 {[%clk 0:00:29]}  Rf6 {[%clk 0:00:30]} 36. Bxe5 {[%clk 0:00:26]}  Nxe5 {[%clk 0:00:27]} 37. Qxe5 {[%clk 0:00:26]}  Qxc8 {[%clk 0:00:28]} 38. Qxf6 {[%clk 0:00:24]}  Qc1+ {[%clk 0:00:29]} 39. Kg2 {[%clk 0:00:23]}  Qxd2 {[%clk 0:00:29]} 40. Qxf7+ {[%clk 0:00:23]}  Kh6 {[%clk 0:00:30]} 41. d7 {[%clk 0:00:22]}  e3 {[%clk 0:00:29]} 42. Qf8+ {[%clk 0:00:22]}  Kh7 {[%clk 0:00:29]} 43. d8=Q {[%clk 0:00:22]} 1-0


[Site "https://www.chess.com"]

[Event "Titled Tuesday Blitz December 06 Late 2022"]
[White "Chigaev, Maksim"]
[Black "Kleiman, Jake"]
[WhiteFideId "4108116"]
[BlackFideId "2020041"]
[WhiteElo "2542"]
[BlackElo "2616"]
[Result "1-0"]
[Round "07"]
[TimeControl "180+1"]
[Date "2022.12.06"]
[WhiteClock "0:01:19"]
[BlackClock "0:00:48"]

1. c4 {[%clk 0:03:00]}  e6 {[%clk 0:02:59]} 2. g3 {[%clk 0:03:00]}  d5 {[%clk 0:02:59]} 3. Bg2 {[%clk 0:03:01]}  Nf6 {[%clk 0:03:00]} 4. Nf3 {[%clk 0:03:02]}  dxc4 {[%clk 0:03:00]} 5. O-O {[%clk 0:03:02]}  Nc6 {[%clk 0:03:00]} 6. Qa4 {[%clk 0:03:00]}  Bd7 {[%clk 0:02:44]} 7. Qxc4 {[%clk 0:02:58]}  Bd6 {[%clk 0:02:45]} 8. d4 {[%clk 0:02:58]}  O-O {[%clk 0:02:43]} 9. Nc3 {[%clk 0:02:59]}  h6 {[%clk 0:02:29]} 10. e4 {[%clk 0:02:54]}  e5 {[%clk 0:02:29]} 11. d5 {[%clk 0:02:54]}  Ne7 {[%clk 0:02:28]} 12. Rd1 {[%clk 0:02:49]}  Ng6 {[%clk 0:02:28]} 13. h3 {[%clk 0:02:46]}  a6 {[%clk 0:02:28]} 14. Be3 {[%clk 0:02:42]}  Nh7 {[%clk 0:02:11]} 15. a4 {[%clk 0:02:37]}  f5 {[%clk 0:02:08]} 16. exf5 {[%clk 0:02:36]}  Bxf5 {[%clk 0:02:09]} 17. Ne4 {[%clk 0:02:33]}  Kh8 {[%clk 0:02:07]} 18. Nc5 {[%clk 0:02:25]}  Qc8 {[%clk 0:01:54]} 19. Ne6 {[%clk 0:02:11]}  Re8 {[%clk 0:01:49]} 20. Nd2 {[%clk 0:02:10]}  Ngf8 {[%clk 0:01:46]} 21. Nxf8 {[%clk 0:02:05]}  Rxf8 {[%clk 0:01:46]} 22. g4 {[%clk 0:01:57]}  Bg6 {[%clk 0:01:46]} 23. Ne4 {[%clk 0:01:53]}  Qd8 {[%clk 0:01:42]} 24. Nc5 {[%clk 0:01:42]}  Bxc5 {[%clk 0:01:14]} 25. Qxc5 {[%clk 0:01:41]}  Rf6 {[%clk 0:01:11]} 26. Rac1 {[%clk 0:01:40]}  Rc8 {[%clk 0:01:09]} 27. d6 {[%clk 0:01:35]}  c6 {[%clk 0:01:07]} 28. Qxe5 {[%clk 0:01:34]}  Qd7 {[%clk 0:00:52]} 29. Qe7 {[%clk 0:01:26]}  Rd8 {[%clk 0:00:53]} 30. Bb6 {[%clk 0:01:22]}  Rxd6 {[%clk 0:00:48]} 31. Qxd8+ {[%clk 0:01:19]} 1-0


[Site "https://www.chess.com"]

[Event "Titled Tuesday Blitz December 06 Late 2022"]
[White "Christiansen, Johan-Sebastian"]
[Black "Kollars, Dmitrij"]
[WhiteFideId "1512668"]
[BlackFideId "12909572"]
[WhiteElo "2501"]
[BlackElo "2584"]
[Result "0-1"]
[Round "07"]
[TimeControl "180+1"]
[Date "2022.12.06"]
[WhiteClock "0:00:10"]
[BlackClock "0:00:21"]

1. e4 {[%clk 0:02:56]}  e5 {[%clk 0:03:00]} 2. Nf3 {[%clk 0:02:54]}  Nc6 {[%clk 0:03:00]} 3. Nc3 {[%clk 0:02:54]}  Nf6 {[%clk 0:03:00]} 4. d4 {[%clk 0:02:55]}  exd4 {[%clk 0:03:01]} 5. Nd5 {[%clk 0:02:55]}  Nb4 {[%clk 0:02:56]} 6. Nxf6+ {[%clk 0:02:49]}  Qxf6 {[%clk 0:02:55]} 7. Bc4 {[%clk 0:02:37]}  Bc5 {[%clk 0:02:46]} 8. O-O {[%clk 0:02:34]}  O-O {[%clk 0:02:46]} 9. Bg5 {[%clk 0:02:28]}  Qg6 {[%clk 0:02:39]} 10. Bh4 {[%clk 0:02:28]}  d6 {[%clk 0:02:34]} 11. a3 {[%clk 0:02:04]}  Nc6 {[%clk 0:02:34]} 12. b4 {[%clk 0:02:03]}  Bb6 {[%clk 0:02:33]} 13. Re1 {[%clk 0:01:58]}  Bg4 {[%clk 0:02:26]} 14. Be2 {[%clk 0:01:58]}  Rfe8 {[%clk 0:02:02]} 15. h3 {[%clk 0:01:49]}  Bxh3 {[%clk 0:01:53]} 16. Ng5 {[%clk 0:01:50]}  Be6 {[%clk 0:01:53]} 17. f4 {[%clk 0:01:47]}  d3+ {[%clk 0:01:50]} 18. Kh2 {[%clk 0:01:38]}  dxe2 {[%clk 0:01:47]} 19. Qxe2 {[%clk 0:01:37]}  Nd4 {[%clk 0:01:41]} 20. Qd3 {[%clk 0:01:34]}  Qh5 {[%clk 0:01:41]} 21. g3 {[%clk 0:01:31]}  h6 {[%clk 0:01:29]} 22. Nxe6 {[%clk 0:01:30]}  Nf3+ {[%clk 0:01:28]} 23. Kg2 {[%clk 0:01:28]}  Nxe1+ {[%clk 0:01:26]} 24. Rxe1 {[%clk 0:01:29]}  fxe6 {[%clk 0:01:22]} 25. c4 {[%clk 0:01:28]}  g5 {[%clk 0:01:18]} 26. fxg5 {[%clk 0:01:28]}  hxg5 {[%clk 0:01:18]} 27. Rh1 {[%clk 0:01:25]}  Rf8 {[%clk 0:01:15]} 28. c5 {[%clk 0:01:22]}  dxc5 {[%clk 0:01:15]} 29. Qc4 {[%clk 0:01:17]}  Qf3+ {[%clk 0:00:57]} 30. Kh2 {[%clk 0:01:17]}  Qf2+ {[%clk 0:00:57]} 31. Kh3 {[%clk 0:01:17]}  g4+ {[%clk 0:00:55]} 32. Kxg4 {[%clk 0:01:17]}  Qf3+ {[%clk 0:00:54]} 33. Kg5 {[%clk 0:01:15]}  cxb4 {[%clk 0:00:36]} 34. Qxe6+ {[%clk 0:00:57]}  Qf7 {[%clk 0:00:36]} 35. Qg6+ {[%clk 0:00:38]}  Qxg6+ {[%clk 0:00:36]} 36. Kxg6 {[%clk 0:00:38]}  Bd4 {[%clk 0:00:27]} 37. e5 {[%clk 0:00:37]}  Bxe5 {[%clk 0:00:27]} 38. Re1 {[%clk 0:00:36]}  Rae8 {[%clk 0:00:26]} 39. axb4 {[%clk 0:00:37]}  Re6+ {[%clk 0:00:26]} 40. Kh5 {[%clk 0:00:37]}  a6 {[%clk 0:00:24]} 41. Re4 {[%clk 0:00:37]}  Rfe8 {[%clk 0:00:21]} 42. Rc4 {[%clk 0:00:31]}  c6 {[%clk 0:00:21]} 43. g4 {[%clk 0:00:31]}  Bg7 {[%clk 0:00:21]} 44. g5 {[%clk 0:00:31]}  Re5 {[%clk 0:00:21]} 45. Rc2 {[%clk 0:00:25]}  Re2 {[%clk 0:00:20]} 46. Rc1 {[%clk 0:00:24]}  Rh2 {[%clk 0:00:20]} 47. Rc4 {[%clk 0:00:22]}  Rd8 {[%clk 0:00:19]} 48. Kg6 {[%clk 0:00:18]}  Rd6+ {[%clk 0:00:19]} 49. Kf5 {[%clk 0:00:18]}  Rd5+ {[%clk 0:00:20]} 50. Kg6 {[%clk 0:00:18]}  Rd6+ {[%clk 0:00:20]} 51. Kf5 {[%clk 0:00:18]}  Rd4 {[%clk 0:00:21]} 52. Rc1 {[%clk 0:00:14]}  Rhxh4 {[%clk 0:00:20]} 53. Re1 {[%clk 0:00:15]}  Rhf4+ {[%clk 0:00:19]} 54. Kg6 {[%clk 0:00:15]}  Rd6+ {[%clk 0:00:20]} 55. Kh5 {[%clk 0:00:16]}  Kf8 {[%clk 0:00:20]} 56. Rb1 {[%clk 0:00:15]}  b6 {[%clk 0:00:20]} 57. Ra1 {[%clk 0:00:14]}  Rxb4 {[%clk 0:00:18]} 58. Rxa6 {[%clk 0:00:14]}  Rd8 {[%clk 0:00:19]} 59. Ra7 {[%clk 0:00:14]}  Kg8 {[%clk 0:00:18]} 60. Kg6 {[%clk 0:00:15]}  Bh8 {[%clk 0:00:18]} 61. Kh6 {[%clk 0:00:11]}  c5 {[%clk 0:00:18]} 62. Rc7 {[%clk 0:00:10]}  Rh4+ {[%clk 0:00:18]} 63. Kg6 {[%clk 0:00:10]}  Rhd4 {[%clk 0:00:19]} 64. Kh6 {[%clk 0:00:08]}  R4d6+ {[%clk 0:00:18]} 65. g6 {[%clk 0:00:08]}  R6d7 {[%clk 0:00:18]} 66. Rc6 {[%clk 0:00:08]}  Bg7+ {[%clk 0:00:19]} 67. Kh5 {[%clk 0:00:08]}  Rd5+ {[%clk 0:00:19]} 68. Kg4 {[%clk 0:00:09]}  Rd4+ {[%clk 0:00:20]} 69. Kf5 {[%clk 0:00:09]}  R8d5+ {[%clk 0:00:20]} 70. Ke6 {[%clk 0:00:10]}  Re5# {[%clk 0:00:21]} 0-1


[Site "https://www.chess.com"]

[Event "Titled Tuesday Blitz December 06 Late 2022"]
[White "Clawitter, Craig"]
[Black "Sanchez, Robert"]
[WhiteFideId "2023105"]
[BlackFideId "2034360"]
[WhiteElo "2191"]
[BlackElo "2314"]
[Result "1-0"]
[Round "07"]
[TimeControl "180+1"]
[Date "2022.12.07"]
[WhiteClock "0:00:02"]
[BlackClock "0:00:12"]

1. e4 {[%clk 0:03:00]}  d5 {[%clk 0:02:59]} 2. exd5 {[%clk 0:03:00]}  Qxd5 {[%clk 0:03:00]} 3. Nc3 {[%clk 0:03:01]}  Qe6+ {[%clk 0:03:01]} 4. Be2 {[%clk 0:03:00]}  Qg6 {[%clk 0:03:01]} 5. Nf3 {[%clk 0:02:58]}  Qxg2 {[%clk 0:03:00]} 6. Rg1 {[%clk 0:02:59]}  Qh3 {[%clk 0:03:00]} 7. d4 {[%clk 0:02:53]}  c6 {[%clk 0:03:00]} 8. Bc4 {[%clk 0:02:27]}  e6 {[%clk 0:02:35]} 9. Bf4 {[%clk 0:02:18]}  h6 {[%clk 0:02:29]} 10. Qe2 {[%clk 0:02:10]}  Nf6 {[%clk 0:02:29]} 11. O-O-O {[%clk 0:02:01]}  a5 {[%clk 0:02:14]} 12. Ne5 {[%clk 0:01:45]}  b5 {[%clk 0:01:56]} 13. Nxb5 {[%clk 0:01:27]}  cxb5 {[%clk 0:01:52]} 14. Bxb5+ {[%clk 0:01:28]}  Nbd7 {[%clk 0:01:41]} 15. d5 {[%clk 0:01:07]}  Qf5 {[%clk 0:01:29]} 16. Bg3 {[%clk 0:01:02]}  Bc5 {[%clk 0:01:09]} 17. Nxf7 {[%clk 0:00:34]}  Kxf7 {[%clk 0:00:52]} 18. dxe6+ {[%clk 0:00:34]}  Kg8 {[%clk 0:00:41]} 19. exd7 {[%clk 0:00:31]}  Bxd7 {[%clk 0:00:42]} 20. Bxd7 {[%clk 0:00:20]}  Nxd7 {[%clk 0:00:42]} 21. Qc4+ {[%clk 0:00:13]}  Kh7 {[%clk 0:00:35]} 22. Rxd7 {[%clk 0:00:11]}  Qxd7 {[%clk 0:00:33]} 23. Qxc5 {[%clk 0:00:12]}  Rhc8 {[%clk 0:00:32]} 24. Qa3 {[%clk 0:00:07]}  Qf5 {[%clk 0:00:29]} 25. c3 {[%clk 0:00:04]}  Kh8 {[%clk 0:00:24]} 26. Qe7 {[%clk 0:00:04]}  Re8 {[%clk 0:00:16]} 27. Qb7 {[%clk 0:00:03]}  Rab8 {[%clk 0:00:15]} 28. Bxb8 {[%clk 0:00:03]}  Qxf2 {[%clk 0:00:12]} 29. Qxg7# {[%clk 0:00:02]} 1-0


[Site "https://www.chess.com"]

[Event "Titled Tuesday Blitz December 06 Late 2022"]
[White "Curtis, John"]
[Black "Petrovic, Aleksa"]
[WhiteFideId "3200256"]
[BlackFideId "967629"]
[WhiteElo "2203"]
[BlackElo "2230"]
[Result "0-1"]
[Round "07"]
[TimeControl "180+1"]
[Date "2022.12.07"]
[WhiteClock "0:00:07"]
[BlackClock "0:01:18"]

1. e4 {[%clk 0:03:00]}  c6 {[%clk 0:02:59]} 2. d4 {[%clk 0:02:58]}  d5 {[%clk 0:02:59]} 3. exd5 {[%clk 0:02:59]}  cxd5 {[%clk 0:02:58]} 4. c4 {[%clk 0:02:59]}  Nf6 {[%clk 0:02:58]} 5. Nc3 {[%clk 0:02:59]}  e6 {[%clk 0:02:57]} 6. Nf3 {[%clk 0:02:59]}  Bb4 {[%clk 0:02:55]} 7. a3 {[%clk 0:02:34]}  Bxc3+ {[%clk 0:02:54]} 8. bxc3 {[%clk 0:02:34]}  O-O {[%clk 0:02:53]} 9. Bd3 {[%clk 0:02:32]}  dxc4 {[%clk 0:02:50]} 10. Bxc4 {[%clk 0:02:31]}  Qc7 {[%clk 0:02:49]} 11. Qd3 {[%clk 0:02:30]}  b6 {[%clk 0:02:40]} 12. O-O {[%clk 0:02:19]}  Bb7 {[%clk 0:02:38]} 13. Ne5 {[%clk 0:02:18]}  Nbd7 {[%clk 0:02:29]} 14. Nxd7 {[%clk 0:02:00]}  Nxd7 {[%clk 0:02:24]} 15. Bb3 {[%clk 0:01:51]}  Rac8 {[%clk 0:02:21]} 16. c4 {[%clk 0:01:49]}  Rfd8 {[%clk 0:02:16]} 17. Bg5 {[%clk 0:01:41]}  f6 {[%clk 0:02:04]} 18. Be3 {[%clk 0:01:27]}  Nc5 {[%clk 0:02:03]} 19. Qb1 {[%clk 0:01:20]}  Be4 {[%clk 0:02:01]} 20. Qa2 {[%clk 0:01:16]}  Nxb3 {[%clk 0:02:00]} 21. Qxb3 {[%clk 0:01:16]}  Qxc4 {[%clk 0:02:01]} 22. Qxc4 {[%clk 0:01:16]}  Rxc4 {[%clk 0:02:02]} 23. Rfc1 {[%clk 0:01:08]}  Rdc8 {[%clk 0:02:01]} 24. Rxc4 {[%clk 0:01:07]}  Rxc4 {[%clk 0:02:02]} 25. Rc1 {[%clk 0:01:07]}  Rxc1+ {[%clk 0:01:58]} 26. Bxc1 {[%clk 0:01:07]}  Kf7 {[%clk 0:01:59]} 27. f3 {[%clk 0:01:07]}  Bd3 {[%clk 0:01:57]} 28. Bf4 {[%clk 0:01:06]}  Ke7 {[%clk 0:01:55]} 29. Bb8 {[%clk 0:01:03]}  a6 {[%clk 0:01:54]} 30. Ba7 {[%clk 0:01:04]}  b5 {[%clk 0:01:54]} 31. Kf2 {[%clk 0:01:02]}  Kd7 {[%clk 0:01:54]} 32. Ke3 {[%clk 0:01:02]}  Bf1 {[%clk 0:01:54]} 33. g3 {[%clk 0:00:54]}  Kc6 {[%clk 0:01:54]} 34. Bc5 {[%clk 0:00:47]}  Kd5 {[%clk 0:01:54]} 35. Bf8 {[%clk 0:00:46]}  g6 {[%clk 0:01:52]} 36. Bg7 {[%clk 0:00:44]}  f5 {[%clk 0:01:52]} 37. Bf8 {[%clk 0:00:43]}  Kc4 {[%clk 0:01:51]} 38. h4 {[%clk 0:00:35]}  a5 {[%clk 0:01:50]} 39. Bd6 {[%clk 0:00:29]}  b4 {[%clk 0:01:49]} 40. axb4 {[%clk 0:00:29]}  axb4 {[%clk 0:01:50]} 41. Kd2 {[%clk 0:00:28]}  b3 {[%clk 0:01:49]} 42. Ba3 {[%clk 0:00:20]}  Kxd4 {[%clk 0:01:48]} 43. Bb2+ {[%clk 0:00:21]}  Kd5 {[%clk 0:01:47]} 44. Ke3 {[%clk 0:00:19]}  Bg2 {[%clk 0:01:45]} 45. f4 {[%clk 0:00:18]}  Bf1 {[%clk 0:01:29]} 46. Be5 {[%clk 0:00:16]}  Kc4 {[%clk 0:01:27]} 47. Bb2 {[%clk 0:00:15]}  Kb4 {[%clk 0:01:28]} 48. Kd4 {[%clk 0:00:14]}  Bc4 {[%clk 0:01:24]} 49. Bc1 {[%clk 0:00:14]}  Bd5 {[%clk 0:01:23]} 50. Bb2 {[%clk 0:00:14]}  Ka4 {[%clk 0:01:22]} 51. Kc5 {[%clk 0:00:10]}  Ka5 {[%clk 0:01:20]} 52. Bc1 {[%clk 0:00:09]}  Ka6 {[%clk 0:01:19]} 53. Bb2 {[%clk 0:00:09]}  Kb7 {[%clk 0:01:19]} 54. Bc1 {[%clk 0:00:09]}  Kc7 {[%clk 0:01:19]} 55. Bb2 {[%clk 0:00:10]}  Kd7 {[%clk 0:01:20]} 56. Bc3 {[%clk 0:00:10]}  Ke7 {[%clk 0:01:20]} 57. Bb2 {[%clk 0:00:11]}  Kf7 {[%clk 0:01:20]} 58. Bc3 {[%clk 0:00:11]}  h6 {[%clk 0:01:20]} 59. Bb2 {[%clk 0:00:11]}  g5 {[%clk 0:01:21]} 60. hxg5 {[%clk 0:00:11]}  hxg5 {[%clk 0:01:22]} 61. Kd4 {[%clk 0:00:08]}  Kg6 {[%clk 0:01:20]} 62. Ke5 {[%clk 0:00:07]}  Kh5 {[%clk 0:01:19]} 63. fxg5 {[%clk 0:00:07]}  Kxg5 {[%clk 0:01:18]} 0-1


[Site "https://www.chess.com"]

[Event "Titled Tuesday Blitz December 06 Late 2022"]
[White "Dias, Joao Batista"]
[Black "Alimpic, Aleksa"]
[WhiteFideId "2108240"]
[BlackFideId "974323"]
[WhiteElo "1898"]
[BlackElo "2283"]
[Result "0-1"]
[Round "07"]
[TimeControl "180+1"]
[Date "2022.12.07"]
[WhiteClock "0:01:08"]
[BlackClock "0:00:52"]

1. e4 {[%clk 0:03:00]}  g6 {[%clk 0:02:59]} 2. d4 {[%clk 0:03:00]}  Bg7 {[%clk 0:03:00]} 3. Be3 {[%clk 0:02:59]}  a6 {[%clk 0:02:59]} 4. Bd3 {[%clk 0:02:59]}  b5 {[%clk 0:02:59]} 5. Ne2 {[%clk 0:02:59]}  Bb7 {[%clk 0:02:59]} 6. O-O {[%clk 0:02:55]}  d6 {[%clk 0:02:57]} 7. f3 {[%clk 0:02:55]}  Nd7 {[%clk 0:02:57]} 8. Nd2 {[%clk 0:02:55]}  c5 {[%clk 0:02:52]} 9. c3 {[%clk 0:02:55]}  Ngf6 {[%clk 0:02:49]} 10. Rc1 {[%clk 0:02:53]}  O-O {[%clk 0:02:49]} 11. Bb1 {[%clk 0:02:50]}  e5 {[%clk 0:02:46]} 12. d5 {[%clk 0:02:50]}  Ne8 {[%clk 0:02:39]} 13. c4 {[%clk 0:02:47]}  f5 {[%clk 0:02:36]} 14. Bf2 {[%clk 0:02:47]}  Bh6 {[%clk 0:02:33]} 15. b3 {[%clk 0:02:37]}  Ng7 {[%clk 0:02:14]} 16. Rc3 {[%clk 0:02:33]}  b4 {[%clk 0:02:14]} 17. Rc2 {[%clk 0:02:33]}  a5 {[%clk 0:02:10]} 18. Re1 {[%clk 0:02:26]}  Bc8 {[%clk 0:02:05]} 19. Nf1 {[%clk 0:02:24]}  Nf6 {[%clk 0:02:03]} 20. Neg3 {[%clk 0:02:19]}  Ngh5 {[%clk 0:01:58]} 21. Nxh5 {[%clk 0:02:17]}  Nxh5 {[%clk 0:01:59]} 22. Ng3 {[%clk 0:02:17]}  Qg5 {[%clk 0:01:44]} 23. Nxh5 {[%clk 0:02:15]}  Qxh5 {[%clk 0:01:45]} 24. Be3 {[%clk 0:02:12]}  Bxe3+ {[%clk 0:01:35]} 25. Rxe3 {[%clk 0:02:11]}  fxe4 {[%clk 0:01:36]} 26. Rxe4 {[%clk 0:02:11]}  Bf5 {[%clk 0:01:36]} 27. Rce2 {[%clk 0:02:09]}  Bxe4 {[%clk 0:01:34]} 28. Rxe4 {[%clk 0:02:09]}  Qg5 {[%clk 0:01:26]} 29. h4 {[%clk 0:02:03]}  Qh6 {[%clk 0:01:22]} 30. Qe1 {[%clk 0:01:57]}  Rf4 {[%clk 0:01:19]} 31. Bc2 {[%clk 0:01:40]}  Rxe4 {[%clk 0:01:16]} 32. Bxe4 {[%clk 0:01:39]}  a4 {[%clk 0:01:13]} 33. Qg3 {[%clk 0:01:32]}  Qc1+ {[%clk 0:01:10]} 34. Kh2 {[%clk 0:01:28]}  Qf4 {[%clk 0:01:10]} 35. Qxf4 {[%clk 0:01:27]}  exf4 {[%clk 0:01:11]} 36. Bc2 {[%clk 0:01:28]}  axb3 {[%clk 0:01:11]} 37. Bxb3 {[%clk 0:01:28]}  Kf7 {[%clk 0:01:11]} 38. Kh3 {[%clk 0:01:28]}  h5 {[%clk 0:01:06]} 39. g4 {[%clk 0:01:27]}  fxg3 {[%clk 0:01:06]} 40. Kxg3 {[%clk 0:01:27]}  Kf6 {[%clk 0:01:06]} 41. Kf4 {[%clk 0:01:28]}  Re8 {[%clk 0:01:05]} 42. Kg3 {[%clk 0:01:15]}  Re1 {[%clk 0:01:02]} 43. Kf2 {[%clk 0:01:14]}  Rh1 {[%clk 0:01:01]} 44. Kg3 {[%clk 0:01:13]}  g5 {[%clk 0:00:59]} 45. hxg5+ {[%clk 0:01:12]}  Kxg5 {[%clk 0:01:00]} 46. Bc2 {[%clk 0:01:11]}  Rg1+ {[%clk 0:00:56]} 47. Kf2 {[%clk 0:01:10]}  Rc1 {[%clk 0:00:56]} 48. Bb3 {[%clk 0:01:10]}  Kf4 {[%clk 0:00:56]} 49. Kg2 {[%clk 0:01:08]}  Rc3 {[%clk 0:00:52]} 0-1


[Site "https://www.chess.com"]

[Event "Titled Tuesday Blitz December 06 Late 2022"]
[White "Domingo Nunez, Ruben"]
[Black "Goltsev, Dmitry"]
[WhiteFideId "22245570"]
[BlackFideId "24176710"]
[WhiteElo "2406"]
[BlackElo "2327"]
[Result "1-0"]
[Round "07"]
[TimeControl "180+1"]
[Date "2022.12.06"]
[WhiteClock "0:00:03"]
[BlackClock "0:00:02"]

1. b3 {[%clk 0:02:55]}  Nf6 {[%clk 0:02:52]} 2. Bb2 {[%clk 0:02:56]}  g6 {[%clk 0:02:53]} 3. g4 {[%clk 0:02:55]}  Bg7 {[%clk 0:02:53]} 4. g5 {[%clk 0:02:56]}  Nh5 {[%clk 0:02:53]} 5. Bxg7 {[%clk 0:02:56]}  Nxg7 {[%clk 0:02:54]} 6. h4 {[%clk 0:02:56]}  h5 {[%clk 0:02:54]} 7. d4 {[%clk 0:02:48]}  d5 {[%clk 0:02:54]} 8. Nc3 {[%clk 0:02:47]}  Nf5 {[%clk 0:02:54]} 9. Nf3 {[%clk 0:02:48]}  c6 {[%clk 0:02:52]} 10. e3 {[%clk 0:02:46]}  Nd7 {[%clk 0:02:51]} 11. Qd2 {[%clk 0:02:46]}  Qc7 {[%clk 0:02:48]} 12. Bh3 {[%clk 0:02:47]}  e5 {[%clk 0:02:47]} 13. Bxf5 {[%clk 0:02:47]}  gxf5 {[%clk 0:02:48]} 14. dxe5 {[%clk 0:02:39]}  Nxe5 {[%clk 0:02:49]} 15. Nxe5 {[%clk 0:02:40]}  Qxe5 {[%clk 0:02:49]} 16. O-O-O {[%clk 0:02:40]}  Be6 {[%clk 0:02:47]} 17. Kb1 {[%clk 0:02:39]}  a5 {[%clk 0:02:43]} 18. Rhg1 {[%clk 0:02:17]}  Rg8 {[%clk 0:02:39]} 19. Ne2 {[%clk 0:02:16]}  a4 {[%clk 0:02:38]} 20. Qd4 {[%clk 0:02:05]}  Qd6 {[%clk 0:02:32]} 21. b4 {[%clk 0:02:03]}  b6 {[%clk 0:02:21]} 22. Ka1 {[%clk 0:02:02]}  c5 {[%clk 0:02:21]} 23. bxc5 {[%clk 0:02:03]}  bxc5 {[%clk 0:02:22]} 24. Qf6 {[%clk 0:02:04]}  a3 {[%clk 0:01:44]} 25. Nf4 {[%clk 0:01:27]}  Rb8 {[%clk 0:01:37]} 26. g6 {[%clk 0:01:09]}  Rf8 {[%clk 0:01:31]} 27. Rxd5 {[%clk 0:00:41]}  Qe7 {[%clk 0:00:58]} 28. Qe5 {[%clk 0:00:28]}  Rb2 {[%clk 0:00:53]} 29. gxf7+ {[%clk 0:00:19]}  Bxf7 {[%clk 0:00:51]} 30. Rxc5 {[%clk 0:00:03]}  Rxa2+ {[%clk 0:00:43]} 31. Kb1 {[%clk 0:00:04]}  Rb2+ {[%clk 0:00:44]} 32. Kc1 {[%clk 0:00:04]}  Qxe5 {[%clk 0:00:42]} 33. Rxe5+ {[%clk 0:00:05]}  Kd7 {[%clk 0:00:43]} 34. Rg7 {[%clk 0:00:05]}  Kd6 {[%clk 0:00:35]} 35. Ra5 {[%clk 0:00:05]}  Rc8 {[%clk 0:00:27]} 36. Ra6+ {[%clk 0:00:05]}  Ke5 {[%clk 0:00:26]} 37. Nd3+ {[%clk 0:00:05]}  Ke4 {[%clk 0:00:23]} 38. Nxb2 {[%clk 0:00:05]}  axb2+ {[%clk 0:00:24]} 39. Kxb2 {[%clk 0:00:06]}  Bc4 {[%clk 0:00:25]} 40. Ra4 {[%clk 0:00:05]}  Kf3 {[%clk 0:00:25]} 41. Rg5 {[%clk 0:00:04]}  Be6 {[%clk 0:00:24]} 42. Rf4+ {[%clk 0:00:05]}  Ke2 {[%clk 0:00:24]} 43. Rxh5 {[%clk 0:00:04]}  Rb8+ {[%clk 0:00:22]} 44. Kc3 {[%clk 0:00:04]}  Rc8+ {[%clk 0:00:22]} 45. Kd4 {[%clk 0:00:05]}  Rxc2 {[%clk 0:00:21]} 46. Ke5 {[%clk 0:00:06]}  Bd7 {[%clk 0:00:20]} 47. Rhxf5 {[%clk 0:00:06]}  Rc1 {[%clk 0:00:18]} 48. Rf7 {[%clk 0:00:05]}  Bb5 {[%clk 0:00:17]} 49. Rg7 {[%clk 0:00:04]}  Bd3 {[%clk 0:00:15]} 50. Rg3 {[%clk 0:00:04]}  Ra1 {[%clk 0:00:13]} 51. Kf6 {[%clk 0:00:04]}  Ra6+ {[%clk 0:00:13]} 52. Kg7 {[%clk 0:00:05]}  Ra7+ {[%clk 0:00:13]} 53. Kf6 {[%clk 0:00:04]}  Ra6+ {[%clk 0:00:14]} 54. Kg5 {[%clk 0:00:05]}  Rg6+ {[%clk 0:00:12]} 55. Kh5 {[%clk 0:00:04]}  Ra6 {[%clk 0:00:13]} 56. Rg5 {[%clk 0:00:05]}  Kf1 {[%clk 0:00:12]} 57. Kg4 {[%clk 0:00:05]}  Ke2 {[%clk 0:00:08]} 58. h5 {[%clk 0:00:05]}  Ra1 {[%clk 0:00:09]} 59. h6 {[%clk 0:00:05]}  Rg1+ {[%clk 0:00:10]} 60. Kh5 {[%clk 0:00:05]}  Rh1+ {[%clk 0:00:09]} 61. Rh4 {[%clk 0:00:05]}  Ra1 {[%clk 0:00:09]} 62. Rg7 {[%clk 0:00:02]}  Ra5+ {[%clk 0:00:05]} 63. Kg4 {[%clk 0:00:03]}  Ra1 {[%clk 0:00:03]} 64. Kg5 {[%clk 0:00:03]}  Ra5+ {[%clk 0:00:02]} 65. Kf6 {[%clk 0:00:03]} 1-0


[Site "https://www.chess.com"]

[Event "Titled Tuesday Blitz December 06 Late 2022"]
[White "Droin, Augustin"]
[Black "Timmermans, Mark"]
[WhiteFideId "45105987"]
[BlackFideId "1026399"]
[WhiteElo "2316"]
[BlackElo "2460"]
[Result "0-1"]
[Round "07"]
[TimeControl "180+1"]
[Date "2022.12.06"]
[WhiteClock "0:02:43"]
[BlackClock "0:02:49"]

1. e4 {[%clk 0:03:00]}  e5 {[%clk 0:03:00]} 2. Nf3 {[%clk 0:03:00]}  Nc6 {[%clk 0:02:58]} 3. Bc4 {[%clk 0:03:00]}  Nf6 {[%clk 0:02:58]} 4. d3 {[%clk 0:02:59]}  Be7 {[%clk 0:02:58]} 5. a4 {[%clk 0:02:55]}  O-O {[%clk 0:02:58]} 6. Nc3 {[%clk 0:02:53]}  d6 {[%clk 0:02:57]} 7. h3 {[%clk 0:02:52]}  Kh8 {[%clk 0:02:56]} 8. g4 {[%clk 0:02:51]}  Be6 {[%clk 0:02:54]} 9. Be3 {[%clk 0:02:48]}  d5 {[%clk 0:02:50]} 10. exd5 {[%clk 0:02:48]}  Nxd5 {[%clk 0:02:51]} 11. Nxd5 {[%clk 0:02:47]}  Bxd5 {[%clk 0:02:52]} 12. Bxd5 {[%clk 0:02:44]}  Qxd5 {[%clk 0:02:52]} 13. Qe2 {[%clk 0:02:43]}  f5 {[%clk 0:02:49]} 0-1


[Site "https://www.chess.com"]